[Event "Rapid Tournament (RAP)"]
[Site "Biel, Switzerland"]
[Date "2026.07.12"]
[Round "6.23"]
[White "Kwiatkowski, Maciej"]
[Black "Erne, Raphael"]
[Result "0-1"]
[TimeControl "15 + 5"]
[WhiteTitle "-"]
[BlackTitle "-"]
[WhiteFideId "1360175"]
[BlackFideId "1341928"]
[WhiteElo "1902"]
[BlackElo "2122"]

1. e4 {[%clk 00:15:07]} {[%emt 00:00:02]} c6 {[%clk 00:15:07]} {[%emt
00:00:05]} 2. d4 {[%clk 00:15:09]} {[%emt 00:00:03]} d5 {[%clk 00:15:08]}
{[%emt 00:00:04]} 3. Nc3 {[%clk 00:15:12]} {[%emt 00:00:01]} dxe4 {[%clk
00:15:10]} {[%emt 00:00:04]} 4. Nxe4 {[%clk 00:15:15]} {[%emt 00:00:02]} Bf5
{[%clk 00:15:12]} {[%emt 00:00:02]} 5. Ng3 {[%clk 00:15:18]} {[%emt 00:00:02]}
Bg6 {[%clk 00:15:14]} {[%emt 00:00:02]} 6. Nf3 {[%clk 00:15:20]} {[%emt
00:00:03]} e6 {[%clk 00:15:17]} {[%emt 00:00:02]} 7. Bc4 {[%clk 00:15:20]}
{[%emt 00:00:06]} Nf6 {[%clk 00:15:17]} {[%emt 00:00:04]} 8. O-O {[%clk
00:15:22]} {[%emt 00:00:03]} Be7 {[%clk 00:15:16]} {[%emt 00:00:06]} 9. c3
{[%clk 00:15:13]} {[%emt 00:00:15]} O-O {[%clk 00:15:14]} {[%emt 00:00:06]} 10.
Qe2 {[%clk 00:15:14]} {[%emt 00:00:05]} Nbd7 {[%clk 00:15:12]} {[%emt
00:00:06]} 11. Re1 {[%clk 00:15:13]} {[%emt 00:00:06]} Re8 {[%clk 00:14:57]}
{[%emt 00:00:20]} 12. h4 {[%clk 00:13:24]} {[%emt 00:01:55]} h6 {[%clk
00:13:51]} {[%emt 00:01:10]} 13. Ne5 {[%clk 00:13:11]} {[%emt 00:00:18]} Nxe5
{[%clk 00:13:32]} {[%emt 00:00:24]} 14. dxe5 {[%clk 00:13:14]} {[%emt
00:00:03]} Nd5 {[%clk 00:13:30]} {[%emt 00:00:06]} 15. h5 {[%clk 00:13:15]}
{[%emt 00:00:04]} Bh7 {[%clk 00:13:32]} {[%emt 00:00:03]} 16. Qg4 {[%clk
00:11:18]} {[%emt 00:02:02]} Kh8 {[%clk 00:13:21]} {[%emt 00:00:16]} 17. Bb3
{[%clk 00:09:40]} {[%emt 00:01:43]} Qc7 {[%clk 00:12:47]} {[%emt 00:00:39]} 18.
a3 {[%clk 00:08:45]} {[%emt 00:01:00]} b5 {[%clk 00:09:28]} {[%emt 00:03:23]}
19. c4 {[%clk 00:07:52]} {[%emt 00:00:59]} bxc4 {[%clk 00:08:48]} {[%emt
00:00:46]} 20. Bxc4 {[%clk 00:07:55]} {[%emt 00:00:02]} Rab8 {[%clk 00:08:42]}
{[%emt 00:00:10]} 21. b3 {[%clk 00:05:16]} {[%emt 00:02:44]} Qa5 {[%clk
00:08:02]} {[%emt 00:00:45]} 22. Bb2 {[%clk 00:05:16]} {[%emt 00:00:05]} Nb6
{[%clk 00:05:43]} {[%emt 00:02:24]} 23. Bf1 {[%clk 00:04:19]} {[%emt 00:01:02]}
Na4 {[%clk 00:03:51]} {[%emt 00:01:58]} 24. b4 {[%clk 00:03:16]} {[%emt
00:01:08]} Qb6 {[%clk 00:03:46]} {[%emt 00:00:10]} 25. Bd4 {[%clk 00:03:18]}
{[%emt 00:00:03]} c5 {[%clk 00:03:26]} {[%emt 00:00:24]} 26. Be3 {[%clk
00:03:22]} {[%emt 00:00:02]} Qb7 {[%clk 00:02:47]} {[%emt 00:00:44]} 27. b5
{[%clk 00:01:00]} {[%emt 00:02:26]} Nb6 {[%clk 00:02:43]} {[%emt 00:00:09]} 28.
a4 {[%clk 00:00:54]} {[%emt 00:00:12]} Nd5 {[%clk 00:02:40]} {[%emt 00:00:07]}
29. Bd2 {[%clk 00:00:48]} {[%emt 00:00:11]} Red8 {[%clk 00:02:21]} {[%emt
00:00:24]} 30. Ba5 {[%clk 00:00:46]} {[%emt 00:00:08]} Nb6 {[%clk 00:02:16]}
{[%emt 00:00:10]} 31. Be2 {[%clk 00:00:34]} {[%emt 00:00:16]} Rd4 {[%clk
00:02:00]} {[%emt 00:00:20]} 32. Qf3 {[%clk 00:00:15]} {[%emt 00:00:25]} Qxf3
{[%clk 00:01:34]} {[%emt 00:00:31]} 33. Bxf3 {[%clk 00:00:19]} {[%emt
00:00:01]} Nxa4 {[%clk 00:01:00]} {[%emt 00:00:39]} 34. Bc6 {[%clk 00:00:21]}
{[%emt 00:00:03]} Nb6 {[%clk 00:00:36]} {[%emt 00:00:29]} 35. Ne2 {[%clk
00:00:17]} {[%emt 00:00:09]} Rd3 {[%clk 00:00:16]} {[%emt 00:00:25]} 36. Nf4
{[%clk 00:00:21]} {[%emt 00:00:02]} Rd4 {[%clk 00:00:18]} {[%emt 00:00:03]} 37.
Ne2 {[%clk 00:00:25]} {[%emt 00:00:01]} Rdd8 {[%clk 00:00:22]} 38. Nc3 {[%clk
00:00:20]} {[%emt 00:00:10]} Kg8 {[%clk 00:00:24]} {[%emt 00:00:03]} 39. Ne4
{[%clk 00:00:18]} {[%emt 00:00:07]} Kf8 {[%clk 00:00:13]} {[%emt 00:00:15]} 40.
Rac1 {[%clk 00:00:21]} {[%emt 00:00:01]} Bxe4 {[%clk 00:00:17]} {[%emt
00:00:02]} 41. Rxe4 {[%clk 00:00:25]} {[%emt 00:00:02]} Rd4 {[%clk 00:00:17]}
{[%emt 00:00:05]} 42. Rd1 {[%clk 00:00:20]} {[%emt 00:00:10]} Rxd1+ {[%clk
00:00:19]} {[%emt 00:00:02]} 43. Kh2 {[%clk 00:00:23]} {[%emt 00:00:02]} Rd4
{[%clk 00:00:21]} {[%emt 00:00:04]} 0-1

[Event "Rapid Tournament (RAP)"]
[Site "Biel, Switzerland"]
[Date "2026.07.12"]
[Round "6.24"]
[White "Menzi, Jonas"]
[Black "Zecirovic, Giacomo"]
[Result "0-1"]
[TimeControl "15 + 5"]
[WhiteTitle "-"]
[BlackTitle "-"]
[WhiteFideId "1345133"]
[BlackFideId "1339451"]
[WhiteElo "2114"]
[BlackElo "1886"]

1. e4 {[%clk 00:15:09]} c6 {[%clk 00:15:09]} 2. d4 {[%clk 00:15:12]} {[%emt
00:00:02]} d5 {[%clk 00:15:13]} 3. exd5 {[%clk 00:15:16]} {[%emt 00:00:01]}
cxd5 {[%clk 00:15:16]} {[%emt 00:00:03]} 4. Bd3 {[%clk 00:15:19]} Nf6 {[%clk
00:15:20]} {[%emt 00:00:01]} 5. h3 {[%clk 00:15:23]} Nc6 {[%clk 00:15:23]}
{[%emt 00:00:02]} 6. c3 {[%clk 00:15:27]} {[%emt 00:00:01]} g6 {[%clk
00:15:25]} {[%emt 00:00:03]} 7. Nf3 {[%clk 00:15:30]} {[%emt 00:00:02]} Bg7
{[%clk 00:15:28]} {[%emt 00:00:01]} 8. O-O {[%clk 00:15:33]} {[%emt 00:00:02]}
O-O {[%clk 00:15:31]} {[%emt 00:00:03]} 9. Re1 {[%clk 00:15:19]} {[%emt
00:00:18]} a6 {[%clk 00:15:30]} {[%emt 00:00:06]} 10. a4 {[%clk 00:15:17]}
{[%emt 00:00:07]} Qc7 {[%clk 00:15:15]} {[%emt 00:00:21]} 11. Nbd2 {[%clk
00:12:53]} {[%emt 00:02:29]} Bd7 {[%clk 00:14:19]} {[%emt 00:01:00]} 12. Nb3
{[%clk 00:12:38]} {[%emt 00:00:20]} Rfe8 {[%clk 00:13:52]} {[%emt 00:00:32]} 13.
Nc5 {[%clk 00:12:25]} {[%emt 00:00:19]} Bc8 {[%clk 00:13:05]} {[%emt 00:00:51]}
14. Be3 {[%clk 00:10:30]} {[%emt 00:02:00]} b6 {[%clk 00:12:39]} {[%emt
00:00:32]} 15. Nb3 {[%clk 00:10:33]} {[%emt 00:00:02]} a5 {[%clk 00:12:19]}
{[%emt 00:00:26]} 16. Qc1 {[%clk 00:09:40]} {[%emt 00:00:57]} Ba6 {[%clk
00:12:09]} {[%emt 00:00:15]} 17. Bf4 {[%clk 00:09:42]} {[%emt 00:00:02]} Qc8
{[%clk 00:12:07]} {[%emt 00:00:07]} 18. Bxa6 {[%clk 00:09:20]} {[%emt
00:00:28]} Qxa6 {[%clk 00:12:10]} {[%emt 00:00:01]} 19. Ne5 {[%clk 00:09:13]}
{[%emt 00:00:12]} Rac8 {[%clk 00:11:59]} {[%emt 00:00:17]} 20. Nxc6 {[%clk
00:07:28]} {[%emt 00:01:50]} Rxc6 {[%clk 00:12:02]} {[%emt 00:00:02]} 21. Qd1
{[%clk 00:06:52]} {[%emt 00:00:40]} Qc8 {[%clk 00:10:17]} {[%emt 00:01:50]} 22.
Nc1 {[%clk 00:06:29]} {[%emt 00:00:28]} Qf5 {[%clk 00:10:11]} {[%emt 00:00:11]}
23. Nd3 {[%clk 00:06:12]} {[%emt 00:00:22]} Ne4 {[%clk 00:09:56]} {[%emt
00:00:20]} 24. Be3 {[%clk 00:04:24]} {[%emt 00:01:53]} f6 {[%clk 00:09:20]}
{[%emt 00:00:42]} 25. f3 {[%clk 00:04:03]} {[%emt 00:00:25]} Nd6 {[%clk
00:09:22]} {[%emt 00:00:03]} 26. Bf4 {[%clk 00:03:22]} {[%emt 00:00:45]} Nc4
{[%clk 00:08:50]} {[%emt 00:00:39]} 27. Bg3 {[%clk 00:02:58]} {[%emt 00:00:27]}
e5 {[%clk 00:08:01]} {[%emt 00:00:55]} 28. b3 {[%clk 00:02:41]} {[%emt
00:00:22]} Qg5 {[%clk 00:06:40]} {[%emt 00:01:26]} 29. bxc4 {[%clk 00:01:17]}
{[%emt 00:01:30]} Qxg3 {[%clk 00:06:41]} {[%emt 00:00:04]} 30. cxd5 {[%clk
00:01:20]} {[%emt 00:00:02]} Rxc3 {[%clk 00:06:39]} {[%emt 00:00:07]} 31. Nf2
{[%clk 00:00:47]} {[%emt 00:00:37]} f5 {[%clk 00:06:16]} {[%emt 00:00:29]} 32.
d6 {[%clk 00:00:20]} {[%emt 00:00:33]} Rd8 {[%clk 00:06:09]} {[%emt 00:00:11]}
33. dxe5 {[%clk 00:00:20]} {[%emt 00:00:04]} Bxe5 {[%clk 00:06:09]} {[%emt
00:00:06]} 34. Qd5+ {[%clk 00:00:24]} {[%emt 00:00:01]} Kf8 {[%clk 00:05:46]}
{[%emt 00:00:27]} 35. Rxe5 {[%clk 00:00:20]} {[%emt 00:00:08]} Rc5 {[%clk
00:05:36]} {[%emt 00:00:16]} 36. Ne4 {[%clk 00:00:07]} {[%emt 00:00:19]} Qxe5
{[%clk 00:05:25]} {[%emt 00:00:17]} 37. Qd2 {[%emt 00:00:04]} 0-1

[Event "Rapid Tournament (RAP)"]
[Site "Biel, Switzerland"]
[Date "2026.07.12"]
[Round "6.25"]
[White "Materia, Matteo"]
[Black "El-Mais, Ibaa"]
[Result "0-1"]
[TimeControl "15 + 5"]
[WhiteTitle "-"]
[BlackTitle "-"]
[WhiteFideId "45150575"]
[BlackFideId "1312715"]
[WhiteElo "1868"]
[BlackElo "2100"]

1. Nf3 {[%clk 00:15:08]} {[%emt 00:00:01]} Nf6 {[%clk 00:15:07]} {[%emt
00:00:03]} 2. b3 {[%clk 00:15:10]} {[%emt 00:00:05]} g6 {[%clk 00:15:02]}
{[%emt 00:00:09]} 3. Bb2 {[%clk 00:15:14]} {[%emt 00:00:02]} Bg7 {[%clk
00:15:06]} {[%emt 00:00:01]} 4. e3 {[%clk 00:15:15]} {[%emt 00:00:03]} O-O
{[%clk 00:15:08]} {[%emt 00:00:03]} 5. Be2 {[%clk 00:15:18]} {[%emt 00:00:02]}
d6 {[%clk 00:15:04]} {[%emt 00:00:09]} 6. d4 {[%clk 00:15:22]} b6 {[%clk
00:14:38]} {[%emt 00:00:31]} 7. O-O {[%clk 00:15:21]} {[%emt 00:00:06]} Bb7
{[%clk 00:14:42]} {[%emt 00:00:01]} 8. c4 {[%clk 00:15:23]} {[%emt 00:00:03]}
Nbd7 {[%clk 00:14:35]} {[%emt 00:00:12]} 9. Nc3 {[%clk 00:14:57]} {[%emt
00:00:31]} Ne4 {[%clk 00:14:23]} {[%emt 00:00:17]} 10. Nxe4 {[%clk 00:14:41]}
{[%emt 00:00:21]} Bxe4 {[%clk 00:14:26]} {[%emt 00:00:02]} 11. Nd2 {[%clk
00:14:38]} {[%emt 00:00:07]} Bb7 {[%clk 00:14:25]} {[%emt 00:00:07]} 12. Bf3
{[%clk 00:14:41]} {[%emt 00:00:01]} c6 {[%clk 00:14:25]} {[%emt 00:00:05]} 13.
Qc2 {[%clk 00:14:17]} {[%emt 00:00:30]} Rc8 {[%clk 00:14:27]} {[%emt 00:00:04]}
14. Rad1 {[%clk 00:14:00]} {[%emt 00:00:21]} Qc7 {[%clk 00:14:09]} {[%emt
00:00:22]} 15. Ne4 {[%clk 00:12:44]} {[%emt 00:01:22]} Qb8 {[%clk 00:11:01]}
{[%emt 00:03:13]} 16. Qe2 {[%clk 00:09:03]} {[%emt 00:03:46]} h6 {[%clk
00:10:41]} {[%emt 00:00:25]} 17. g3 {[%clk 00:08:21]} {[%emt 00:00:47]} Ba6
{[%clk 00:10:21]} {[%emt 00:00:25]} 18. Qc2 {[%clk 00:04:45]} {[%emt 00:03:41]}
d5 {[%clk 00:09:53]} {[%emt 00:00:33]} 19. Nd2 {[%clk 00:04:47]} {[%emt
00:00:02]} f5 {[%clk 00:09:53]} {[%emt 00:00:05]} 20. Rfe1 {[%clk 00:04:31]}
{[%emt 00:00:22]} Nf6 {[%clk 00:09:34]} {[%emt 00:00:24]} 21. Qb1 {[%clk
00:03:11]} {[%emt 00:01:25]} Ne4 {[%clk 00:08:36]} {[%emt 00:01:03]} 22. Be2
{[%clk 00:02:04]} {[%emt 00:01:13]} g5 {[%clk 00:05:52]} {[%emt 00:02:48]} 23.
cxd5 {[%clk 00:01:09]} {[%emt 00:01:00]} Bxe2 {[%clk 00:05:53]} {[%emt
00:00:03]} 24. Rxe2 {[%clk 00:01:13]} {[%emt 00:00:02]} cxd5 {[%clk 00:05:57]}
{[%emt 00:00:01]} 25. Nxe4 {[%clk 00:01:08]} {[%emt 00:00:10]} fxe4 {[%clk
00:05:35]} {[%emt 00:00:26]} 26. Rdd2 {[%clk 00:01:12]} {[%emt 00:00:02]} Rf5
{[%clk 00:03:44]} {[%emt 00:01:56]} 27. Rc2 {[%clk 00:01:11]} {[%emt 00:00:06]}
Rcf8 {[%clk 00:03:47]} {[%emt 00:00:02]} 28. Bc3 {[%clk 00:01:08]} {[%emt
00:00:07]} h5 {[%clk 00:03:37]} {[%emt 00:00:16]} 29. Be1 {[%clk 00:01:02]}
{[%emt 00:00:11]} h4 {[%clk 00:03:37]} {[%emt 00:00:06]} 30. Rc6 {[%clk
00:00:51]} {[%emt 00:00:16]} Qe8 {[%clk 00:03:36]} {[%emt 00:00:06]} 31. Rec2
{[%clk 00:00:44]} {[%emt 00:00:11]} Qh5 {[%clk 00:03:24]} {[%emt 00:00:16]} 32.
Rc8 {[%clk 00:00:34]} {[%emt 00:00:16]} Qf3 {[%clk 00:03:06]} {[%emt 00:00:23]}
33. Rxf8+ {[%clk 00:00:36]} {[%emt 00:00:03]} Bxf8 {[%clk 00:03:03]} {[%emt
00:00:07]} 34. Bb4 {[%clk 00:00:26]} {[%emt 00:00:16]} a5 {[%clk 00:02:05]}
{[%emt 00:01:03]} 35. Ba3 {[%clk 00:00:29]} {[%emt 00:00:02]} g4 {[%clk
00:01:19]} {[%emt 00:00:50]} 36. Qf1 {[%clk 00:00:07]} {[%emt 00:00:27]} hxg3
{[%clk 00:00:46]} {[%emt 00:00:37]} 37. hxg3 {[%clk 00:00:10]} {[%emt
00:00:02]} Rh5 {[%clk 00:00:50]} {[%emt 00:00:01]} 0-1

[Event "Rapid Tournament (RAP)"]
[Site "Biel, Switzerland"]
[Date "2026.07.12"]
[Round "6.26"]
[White "Haugner, Jan"]
[Black "Di Meo, Quentin"]
[Result "1-0"]
[TimeControl "15 + 5"]
[WhiteTitle "-"]
[BlackTitle "-"]
[WhiteFideId "24655244"]
[BlackFideId "1338498"]
[WhiteElo "2079"]
[BlackElo "1828"]

1. e4 {[%clk 00:15:08]} {[%emt 00:00:01]} c6 {[%clk 00:15:08]} {[%emt
00:00:01]} 2. Nf3 {[%clk 00:15:12]} {[%emt 00:00:02]} d5 {[%clk 00:15:11]}
{[%emt 00:00:03]} 3. d3 {[%clk 00:15:16]} Bg4 {[%clk 00:15:12]} {[%emt
00:00:04]} 4. h3 {[%clk 00:15:20]} {[%emt 00:00:02]} Bxf3 {[%clk 00:15:11]}
{[%emt 00:00:05]} 5. Qxf3 {[%clk 00:15:23]} {[%emt 00:00:02]} e5 {[%clk
00:15:03]} {[%emt 00:00:13]} 6. g3 {[%clk 00:13:27]} {[%emt 00:02:01]} Nf6
{[%clk 00:14:54]} {[%emt 00:00:14]} 7. Bg2 {[%clk 00:13:21]} {[%emt 00:00:10]}
h6 {[%clk 00:14:43]} {[%emt 00:00:16]} 8. O-O {[%clk 00:13:03]} {[%emt
00:00:24]} d4 {[%clk 00:13:34]} {[%emt 00:01:14]} 9. a4 {[%clk 00:12:32]}
{[%emt 00:00:37]} Bd6 {[%clk 00:12:58]} {[%emt 00:00:40]} 10. Nd2 {[%clk
00:12:25]} {[%emt 00:00:12]} Nbd7 {[%clk 00:12:45]} {[%emt 00:00:18]} 11. Nc4
{[%clk 00:12:13]} {[%emt 00:00:21]} Bc7 {[%clk 00:12:40]} {[%emt 00:00:06]} 12.
Qe2 {[%clk 00:11:57]} {[%emt 00:00:20]} O-O {[%clk 00:12:18]} {[%emt 00:00:28]}
13. f4 {[%clk 00:11:53]} {[%emt 00:00:09]} exf4 {[%clk 00:10:41]} {[%emt
00:01:42]} 14. gxf4 {[%clk 00:11:56]} {[%emt 00:00:03]} a6 {[%clk 00:09:56]}
{[%emt 00:00:49]} 15. a5 {[%clk 00:11:38]} {[%emt 00:00:23]} Qb8 {[%clk
00:09:05]} {[%emt 00:00:56]} 16. Qf2 {[%clk 00:11:25]} {[%emt 00:00:19]} Nh5
{[%clk 00:08:05]} {[%emt 00:01:04]} 17. Qxd4 {[%clk 00:09:04]} {[%emt
00:02:27]} Qd8 {[%clk 00:07:01]} {[%emt 00:01:08]} 18. Qf2 {[%clk 00:08:37]}
{[%emt 00:00:32]} Bb8 {[%clk 00:06:35]} {[%emt 00:00:32]} 19. Be3 {[%clk
00:08:28]} {[%emt 00:00:14]} Nhf6 {[%clk 00:06:05]} {[%emt 00:00:34]} 20. Ra3
{[%clk 00:08:07]} {[%emt 00:00:26]} Bc7 {[%clk 00:05:38]} {[%emt 00:00:32]} 21.
Kh1 {[%clk 00:07:47]} {[%emt 00:00:24]} Re8 {[%clk 00:05:37]} {[%emt 00:00:06]}
22. Rb3 {[%clk 00:07:35]} {[%emt 00:00:17]} Qc8 {[%clk 00:05:25]} {[%emt
00:00:17]} 23. Rg1 {[%clk 00:06:46]} {[%emt 00:00:54]} Nf8 {[%emt 00:02:11]} 24.
Nb6 {[%clk 00:04:53]} {[%emt 00:01:02]} Bxb6 {[%clk 00:03:58]} {[%emt
00:00:22]} 25. Rxb6 {[%clk 00:04:45]} {[%emt 00:00:14]} Rb8 {[%clk 00:03:44]}
{[%emt 00:00:18]} 26. Kh2 {[%clk 00:04:24]} {[%emt 00:00:26]} Ng6 {[%clk
00:03:08]} {[%emt 00:00:41]} 27. Bf3 {[%clk 00:04:08]} {[%emt 00:00:20]} Kh7
{[%clk 00:02:52]} {[%emt 00:00:22]} 28. Qg3 {[%clk 00:03:32]} {[%emt 00:00:41]}
Rg8 {[%clk 00:01:58]} {[%emt 00:00:58]} 29. f5 {[%clk 00:02:13]} {[%emt
00:01:25]} Ne7 {[%clk 00:01:35]} {[%emt 00:00:28]} 30. c4 {[%clk 00:01:26]}
{[%emt 00:00:53]} Qe8 {[%clk 00:01:27]} {[%emt 00:00:13]} 31. Bf4 {[%clk
00:01:08]} {[%emt 00:00:23]} Nd7 {[%clk 00:01:08]} {[%emt 00:00:23]} 32. Rb4
{[%clk 00:00:46]} {[%emt 00:00:27]} Nc5 {[%clk 00:01:04]} {[%emt 00:00:08]} 33.
Be2 {[%clk 00:00:37]} {[%emt 00:00:14]} Nxf5 {[%clk 00:00:51]} {[%emt
00:00:18]} 34. Qf2 {[%clk 00:00:31]} {[%emt 00:00:12]} Qe7 {[%clk 00:00:08]}
{[%emt 00:00:48]} 35. Bxb8 {[%clk 00:00:30]} {[%emt 00:00:06]} Nxd3 {[%clk
00:00:07]} {[%emt 00:00:06]} 36. Bxd3 {[%clk 00:00:19]} {[%emt 00:00:16]} Qxb4
{[%clk 00:00:10]} {[%emt 00:00:03]} 37. Qxf5+ {[%clk 00:00:22]} {[%emt
00:00:01]} Kh8 {[%clk 00:00:12]} {[%emt 00:00:03]} 38. e5 {[%clk 00:00:19]}
{[%emt 00:00:08]} g6 {[%clk 00:00:14]} {[%emt 00:00:04]} 39. Qf6+ {[%emt
00:01:18]} Qd2+ 40. Qf5 Qb4 41. Qf6+ {[%clk 00:00:00]} Rg7 {[%clk 00:00:11]}
{[%emt 00:00:43]} 42. e6 {[%clk 00:00:58]} {[%emt 00:00:30]} fxe6 {[%clk
00:00:07]} {[%emt 00:00:09]} 43. Be5 {[%clk 00:01:00]} {[%emt 00:00:03]} Qe7
{[%clk 00:00:02]} {[%emt 00:00:04]} 1-0

[Event "Rapid Tournament (RAP)"]
[Site "Biel, Switzerland"]
[Date "2026.07.12"]
[Round "6.27"]
[White "Radovcic, Branimir"]
[Black "Tkhoruk, Roman"]
[Result "0-1"]
[TimeControl "15 + 5"]
[WhiteTitle "-"]
[BlackTitle "-"]
[WhiteFideId "14595346"]
[BlackFideId "34161589"]
[WhiteElo "1840"]
[BlackElo "2076"]

1. e4 {[%clk 00:15:05]} c6 {[%clk 00:15:05]} 2. d4 {[%clk 00:15:05]} d5 {[%clk
00:15:14]} {[%emt 00:57:54]} 3. exd5 {[%clk 00:15:16]} cxd5 {[%clk 00:15:18]}
{[%emt 00:00:04]} 4. c4 {[%clk 00:15:20]} Nf6 {[%clk 00:15:17]} {[%emt
00:00:05]} 5. Nc3 {[%clk 00:15:24]} Nc6 {[%clk 00:15:20]} {[%emt 00:00:04]} 6.
Nf3 {[%clk 00:15:27]} Bg4 {[%clk 00:14:49]} {[%emt 00:00:37]} 7. cxd5 Nxd5
{[%clk 00:14:52]} 8. Qb3 {[%clk 00:15:34]} {[%emt 00:00:01]} Nxc3 {[%clk
00:13:08]} {[%emt 00:01:49]} 9. bxc3 {[%clk 00:14:08]} {[%emt 00:01:31]} Bxf3
{[%clk 00:12:58]} {[%emt 00:00:15]} 10. gxf3 {[%clk 00:14:10]} {[%emt
00:00:02]} Qb6 {[%clk 00:12:19]} {[%emt 00:00:45]} 11. Qxb6 {[%clk 00:12:29]}
{[%emt 00:01:46]} axb6 {[%clk 00:12:23]} {[%emt 00:00:02]} 12. Bb5 {[%clk
00:12:32]} {[%emt 00:00:01]} e6 {[%clk 00:12:16]} {[%emt 00:00:12]} 13. Be3
{[%clk 00:11:05]} {[%emt 00:01:32]} Bd6 {[%clk 00:11:47]} {[%emt 00:00:34]} 14.
Rg1 {[%clk 00:10:53]} {[%emt 00:00:17]} g6 {[%clk 00:11:17]} {[%emt 00:00:35]}
15. h4 {[%clk 00:10:51]} {[%emt 00:00:07]} f6 {[%clk 00:11:15]} {[%emt
00:00:08]} 16. Ke2 {[%clk 00:09:26]} {[%emt 00:01:29]} Kf7 {[%clk 00:11:01]}
{[%emt 00:00:19]} 17. Rgb1 {[%clk 00:08:27]} {[%emt 00:01:04]} Bc7 {[%clk
00:10:46]} {[%emt 00:00:20]} 18. c4 {[%clk 00:08:22]} {[%emt 00:00:11]} Rhd8
{[%clk 00:10:24]} {[%emt 00:00:26]} 19. Rd1 {[%clk 00:08:07]} {[%emt 00:00:20]}
Ra3 {[%clk 00:09:35]} {[%emt 00:00:55]} 20. d5 {[%clk 00:07:09]} {[%emt
00:01:03]} Na7 {[%clk 00:07:29]} {[%emt 00:02:11]} 21. d6 {[%clk 00:05:58]}
{[%emt 00:01:15]} Rxd6 {[%clk 00:07:20]} {[%emt 00:00:15]} 22. Rxd6 {[%clk
00:05:25]} {[%emt 00:00:38]} Bxd6 {[%clk 00:07:23]} 23. Bxb6 {[%clk 00:05:27]}
{[%emt 00:00:02]} Nxb5 {[%clk 00:07:21]} {[%emt 00:00:08]} 24. cxb5 {[%clk
00:05:31]} {[%emt 00:00:01]} Be5 {[%clk 00:07:25]} {[%emt 00:00:01]} 25. Rd1
{[%clk 00:05:25]} {[%emt 00:00:11]} Rxa2+ {[%clk 00:07:28]} {[%emt 00:00:02]}
26. Kf1 {[%clk 00:05:29]} Rb2 {[%clk 00:06:37]} {[%emt 00:00:56]} 27. Rd7+
{[%clk 00:05:20]} {[%emt 00:00:14]} Kg8 {[%clk 00:06:40]} {[%emt 00:00:02]} 28.
h5 {[%clk 00:04:02]} {[%emt 00:01:23]} gxh5 {[%clk 00:06:26]} {[%emt 00:00:19]}
29. Be3 {[%clk 00:03:31]} {[%emt 00:00:35]} Rxb5 {[%clk 00:06:05]} {[%emt
00:00:27]} 30. Bh6 {[%clk 00:03:35]} {[%emt 00:00:02]} f5 {[%clk 00:06:09]}
{[%emt 00:00:01]} 31. f4 {[%clk 00:03:17]} {[%emt 00:00:23]} Bf6 {[%clk
00:05:32]} {[%emt 00:00:41]} 32. Kg2 {[%clk 00:03:03]} {[%emt 00:00:19]} Rb3
{[%clk 00:05:29]} {[%emt 00:00:08]} 33. Rc7 {[%clk 00:03:02]} {[%emt 00:00:07]}
b5 {[%clk 00:05:12]} {[%emt 00:00:22]} 34. Rb7 {[%clk 00:02:54]} {[%emt
00:00:13]} b4 {[%clk 00:04:46]} {[%emt 00:00:31]} 35. Rb8+ {[%clk 00:02:30]}
{[%emt 00:00:29]} Kf7 {[%emt 00:00:03]} 36. Rb7+ {[%clk 00:02:33]} Kg6 {[%clk
00:04:38]} {[%emt 00:00:15]} 37. Bf8 {[%clk 00:02:37]} {[%emt 00:00:02]} Bc3
{[%clk 00:04:42]} {[%emt 00:00:02]} 38. Be7 {[%clk 00:02:30]} {[%emt 00:00:12]}
Rb1 {[%clk 00:04:38]} {[%emt 00:00:08]} 39. Rb6 {[%clk 00:02:33]} {[%emt
00:00:02]} Kf7 {[%clk 00:04:22]} {[%emt 00:00:22]} 40. Rb7 {[%clk 00:02:29]}
{[%emt 00:00:09]} Kg6 {[%clk 00:03:53]} {[%emt 00:00:33]} 41. Rb6 {[%clk
00:02:33]} {[%emt 00:00:02]} b3 {[%clk 00:03:57]} {[%emt 00:00:01]} 42. Rxe6+
{[%clk 00:02:35]} {[%emt 00:00:02]} Kf7 {[%clk 00:04:01]} {[%emt 00:00:01]} 43.
Re2 {[%clk 00:02:32]} {[%emt 00:00:08]} b2 {[%clk 00:03:52]} {[%emt 00:00:13]}
44. Bh4 {[%clk 00:01:31]} {[%emt 00:01:07]} Rg1+ {[%clk 00:03:50]} {[%emt
00:00:07]} 45. Kxg1 {[%clk 00:01:35]} {[%emt 00:00:02]} b1=Q+ {[%clk 00:03:53]}
{[%emt 00:00:02]} 46. Kg2 {[%clk 00:01:38]} Qb4 {[%clk 00:03:38]} {[%emt
00:00:19]} 47. Kg3 {[%clk 00:01:29]} {[%emt 00:00:14]} Bf6 {[%clk 00:03:39]}
{[%emt 00:00:05]} 48. Bxf6 {[%clk 00:01:23]} {[%emt 00:00:12]} Kxf6 {[%clk
00:03:43]} {[%emt 00:00:01]} 49. Re3 {[%clk 00:01:18]} {[%emt 00:00:10]} h4+
{[%clk 00:03:40]} {[%emt 00:00:07]} 50. Kxh4 {[%clk 00:01:21]} {[%emt
00:00:02]} Qxf4+ {[%clk 00:03:43]} {[%emt 00:00:02]} 51. Kh3 {[%clk 00:01:23]}
{[%emt 00:00:03]} Qxf2 {[%clk 00:03:17]} {[%emt 00:00:31]} 52. Rg3 {[%clk
00:01:27]} {[%emt 00:00:02]} f4 {[%clk 00:03:16]} {[%emt 00:00:06]} 53. Rg5
{[%clk 00:01:10]} {[%emt 00:00:21]} Qf3+ {[%clk 00:03:15]} {[%emt 00:00:07]} 54.
Kh4 {[%clk 00:01:09]} {[%emt 00:00:06]} Qh1+ {[%clk 00:03:17]} {[%emt
00:00:02]} 55. Kg4 {[%clk 00:01:12]} {[%emt 00:00:02]} Qg2+ {[%clk 00:03:18]}
{[%emt 00:00:04]} 56. Kxf4 {[%clk 00:01:11]} {[%emt 00:00:06]} Qxg5+ {[%clk
00:03:16]} {[%emt 00:00:02]} 0-1